[Event "*** SCC Grand Prix: Titled Tuesday Blitz"]
[Site "Chess.com"]
[Date "2020.10.06"]
[Round "10"]
[White "besarquis"]
[Black "MasterSonnevanck23"]
[Result "0-1"]
[WhiteElo "2206"]
[BlackElo "2354"]
[TimeControl "180+1"]
[EndTime "11:58:03 PDT"]
[Termination "MasterSonnevanck23 won on time"]

1. e4 {[%clk 0:03:00.3]} 1... g6 {[%clk 0:02:58.9]} 2. d4 {[%clk 0:02:59.9]}
2... Bg7 {[%clk 0:02:59]} 3. Nc3 {[%clk 0:02:59.4]} 3... d6 {[%clk 0:02:58.9]}
4. f4 {[%clk 0:02:59.5]} 4... Nf6 {[%clk 0:02:58.2]} 5. Nf3 {[%clk 0:02:59.8]}
5... O-O {[%clk 0:02:58.6]} 6. Bd3 {[%clk 0:02:59.8]} 6... Nc6 {[%clk
0:02:58.5]} 7. O-O {[%clk 0:02:57.6]} 7... e5 {[%clk 0:02:57.1]} 8. dxe5 {[%clk
0:02:57.8]} 8... dxe5 {[%clk 0:02:56.3]} 9. f5 {[%clk 0:02:58.4]} 9... Nb4
{[%clk 0:02:56.2]} 10. Bg5 {[%clk 0:02:52.9]} 10... Nxd3 {[%clk 0:02:50]} 11.
cxd3 {[%clk 0:02:52.9]} 11... h6 {[%clk 0:02:49.8]} 12. Bh4 {[%clk 0:02:49.6]}
12... gxf5 {[%clk 0:02:49.6]} 13. Kh1 {[%clk 0:02:29.9]} 13... f4 {[%clk
0:02:38.3]} 14. Nxe5 {[%clk 0:02:25]} 14... Qd6 {[%clk 0:02:33]} 15. d4 {[%clk
0:02:19.6]} 15... c5 {[%clk 0:02:24.7]} 16. Nf3 {[%clk 0:02:08.2]} 16... Qa6
{[%clk 0:01:55.8]} 17. d5 {[%clk 0:01:42.6]} 17... Bg4 {[%clk 0:01:39.6]} 18.
Qd2 {[%clk 0:01:38.6]} 18... Nh5 {[%clk 0:01:33.8]} 19. e5 {[%clk 0:01:10.1]}
19... Bxf3 {[%clk 0:01:27.7]} 20. gxf3 {[%clk 0:01:05.5]} 20... Bxe5 {[%clk
0:01:26.2]} 21. Rg1+ {[%clk 0:01:05.5]} 21... Kh8 {[%clk 0:01:25.7]} 22. Qc2
{[%clk 0:00:59.1]} 22... Bf6 {[%clk 0:01:11.6]} 23. Qf5 {[%clk 0:00:48.3]} 23...
Bxh4 {[%clk 0:01:06.5]} 24. Qxh5 {[%clk 0:00:48.2]} 24... Bf2 {[%clk 0:01:03.7]}
25. Rg2 {[%clk 0:00:35]} 25... Bd4 {[%clk 0:01:02.9]} 26. Re1 {[%clk 0:00:18.9]}
26... Rg8 {[%clk 0:00:56.5]} 27. Rge2 {[%clk 0:00:16.4]} 27... Qg6 {[%clk
0:00:51.5]} 28. Qxg6 {[%clk 0:00:11.9]} 28... Rxg6 {[%clk 0:00:43.6]} 29. Nb5
{[%clk 0:00:12.1]} 29... Be3 {[%clk 0:00:42.3]} 30. h4 {[%clk 0:00:09]} 30...
Rd8 {[%clk 0:00:35.9]} 31. Nxa7 {[%clk 0:00:05.6]} 31... Rxd5 {[%clk 0:00:33.8]}
32. Nb5 {[%clk 0:00:03.5]} 32... Rh5 {[%clk 0:00:27.5]} 33. Rh2 {[%clk 0:00:04]}
33... Rg3 {[%clk 0:00:26.7]} 34. Rf1 {[%clk 0:00:04.6]} 34... c4 {[%clk
0:00:24.9]} 35. Nd6 {[%clk 0:00:04.5]} 35... Kg8 {[%clk 0:00:23.1]} 36. Nxb7
{[%clk 0:00:04.4]} 36... Rd5 {[%clk 0:00:20.9]} 37. Rc2 {[%clk 0:00:02.2]} 37...
Rd4 {[%clk 0:00:17.8]} 38. Na5 {[%clk 0:00:01.4]} 38... Rd5 {[%clk 0:00:17.2]}
39. Nxc4 {[%clk 0:00:01.5]} 39... Rh5 {[%clk 0:00:16.8]} 0-1

[Event "*** SCC Grand Prix: Titled Tuesday Blitz"]
[Site "Chess.com"]
[Date "2020.10.06"]
[Round "10"]
[White "The_Machine04"]
[Black "Blagorod"]
[Result "1-0"]
[WhiteElo "2325"]
[BlackElo "2188"]
[TimeControl "180+1"]
[EndTime "11:58:05 PDT"]
[Termination "The_Machine04 won on time"]

1. d4 {[%clk 0:03:00.9]} 1... d5 {[%clk 0:03:00]} 2. Bf4 {[%clk 0:03:00.7]} 2...
Nf6 {[%clk 0:02:58.3]} 3. e3 {[%clk 0:03:00.7]} 3... Bf5 {[%clk 0:02:54.4]} 4.
c4 {[%clk 0:02:59.6]} 4... e6 {[%clk 0:02:53]} 5. Nc3 {[%clk 0:02:59.9]} 5...
Bd6 {[%clk 0:02:42]} 6. Bg3 {[%clk 0:02:59.3]} 6... O-O {[%clk 0:02:39.3]} 7.
Qb3 {[%clk 0:02:49.3]} 7... b6 {[%clk 0:02:33.5]} 8. Nf3 {[%clk 0:02:39.2]} 8...
c5 {[%clk 0:02:24.6]} 9. cxd5 {[%clk 0:02:31.4]} 9... Bxg3 {[%clk 0:02:20.6]}
10. hxg3 {[%clk 0:02:29.2]} 10... exd5 {[%clk 0:02:04.2]} 11. Be2 {[%clk
0:02:13.8]} 11... Nc6 {[%clk 0:01:55.2]} 12. Rd1 {[%clk 0:02:10]} 12... Nb4
{[%clk 0:01:41.6]} 13. Rd2 {[%clk 0:01:54.3]} 13... Ne4 {[%clk 0:01:28.8]} 14.
Nxe4 {[%clk 0:01:51.3]} 14... Bxe4 {[%clk 0:01:22.8]} 15. a3 {[%clk 0:01:31.1]}
15... Nc6 {[%clk 0:01:22.3]} 16. Qb5 {[%clk 0:01:05.8]} 16... Rc8 {[%clk
0:01:09.3]} 17. O-O {[%clk 0:00:55.3]} 17... c4 {[%clk 0:01:01.9]} 18. Rdd1
{[%clk 0:00:43.8]} 18... Re8 {[%clk 0:00:41.7]} 19. Nd2 {[%clk 0:00:43.1]} 19...
Bg6 {[%clk 0:00:31.5]} 20. Bf3 {[%clk 0:00:39.8]} 20... Ne7 {[%clk 0:00:16.6]}
21. Nb1 {[%clk 0:00:38.1]} 21... Qd6 {[%clk 0:00:13.9]} 22. Nc3 {[%clk
0:00:32.6]} 22... Red8 {[%clk 0:00:13.6]} 23. Qb4 {[%clk 0:00:28.2]} 23... Qe6
{[%clk 0:00:11.7]} 24. Rfe1 {[%clk 0:00:18.7]} 24... Bc2 {[%clk 0:00:11.5]} 25.
Rc1 {[%clk 0:00:14.6]} 25... Bb3 {[%clk 0:00:11.6]} 26. a4 {[%clk 0:00:13.6]}
26... Nc6 {[%clk 0:00:09.6]} 27. Qa3 {[%clk 0:00:08.9]} 27... Ne7 {[%clk
0:00:09]} 28. a5 {[%clk 0:00:08.2]} 28... bxa5 {[%clk 0:00:06.4]} 29. Qxa5
{[%clk 0:00:09.1]} 29... Nc6 {[%clk 0:00:05.8]} 30. Qa3 {[%clk 0:00:06.1]} 30...
a5 {[%clk 0:00:01.3]} 31. e4 {[%clk 0:00:03.6]} 1-0

[Event "*** SCC Grand Prix: Titled Tuesday Blitz"]
[Site "Chess.com"]
[Date "2020.10.06"]
[Round "10"]
[White "ARTHURMOTIVATOR"]
[Black "reutik"]
[Result "1/2-1/2"]
[WhiteElo "2326"]
[BlackElo "2197"]
[TimeControl "180+1"]
[EndTime "11:58:06 PDT"]
[Termination "Game drawn by repetition"]

1. e4 {[%clk 0:03:00.9]} 1... e6 {[%clk 0:03:00.2]} 2. b3 {[%clk 0:02:59.4]}
2... d5 {[%clk 0:02:59.4]} 3. Bb2 {[%clk 0:02:56.9]} 3... dxe4 {[%clk 0:02:59]}
4. Nc3 {[%clk 0:02:53.8]} 4... Nf6 {[%clk 0:02:59.1]} 5. Qe2 {[%clk 0:02:51.1]}
5... Nbd7 {[%clk 0:02:45.6]} 6. O-O-O {[%clk 0:02:48.7]} 6... Be7 {[%clk
0:02:43.4]} 7. g4 {[%clk 0:02:47.6]} 7... h6 {[%clk 0:02:42.5]} 8. Bg2 {[%clk
0:02:43.4]} 8... Nc5 {[%clk 0:02:42.2]} 9. h4 {[%clk 0:02:40]} 9... Bd7 {[%clk
0:02:32.7]} 10. g5 {[%clk 0:02:27.8]} 10... hxg5 {[%clk 0:02:21.9]} 11. hxg5
{[%clk 0:02:28.7]} 11... Rxh1 {[%clk 0:02:21.7]} 12. Bxh1 {[%clk 0:02:19.4]}
12... Ng8 {[%clk 0:02:21.6]} 13. Nxe4 {[%clk 0:02:14.1]} 13... Nxe4 {[%clk
0:02:18.9]} 14. Bxe4 {[%clk 0:02:07.9]} 14... Bxg5 {[%clk 0:02:14.1]} 15. Bxb7
{[%clk 0:01:57.2]} 15... Rb8 {[%clk 0:02:13.6]} 16. Be4 {[%clk 0:01:47.5]} 16...
Bf6 {[%clk 0:02:11.3]} 17. d4 {[%clk 0:01:45.2]} 17... c6 {[%clk 0:01:52.6]} 18.
Kb1 {[%clk 0:01:41.5]} 18... Qa5 {[%clk 0:01:50.5]} 19. f4 {[%clk 0:01:37.4]}
19... Ne7 {[%clk 0:01:48.4]} 20. Nf3 {[%clk 0:01:33.3]} 20... Nd5 {[%clk
0:01:43.1]} 21. f5 {[%clk 0:01:30.9]} 21... Kd8 {[%clk 0:01:32.9]} 22. fxe6
{[%clk 0:01:21.1]} 22... fxe6 {[%clk 0:01:29.6]} 23. Ne5 {[%clk 0:01:08.2]}
23... Bxe5 {[%clk 0:01:13.1]} 24. dxe5 {[%clk 0:01:05.3]} 24... Nc3+ {[%clk
0:01:13]} 25. Bxc3 {[%clk 0:01:03.8]} 25... Qxc3 {[%clk 0:01:13.2]} 26. Qg2
{[%clk 0:00:58.4]} 26... Kc7 {[%clk 0:00:58.3]} 27. Qxg7 {[%clk 0:00:35.5]}
27... Rd8 {[%clk 0:00:58.1]} 28. Bg2 {[%clk 0:00:29]} 28... a5 {[%clk
0:00:48.4]} 29. Rd3 {[%clk 0:00:27.4]} 29... Qe1+ {[%clk 0:00:42.6]} 30. Kb2
{[%clk 0:00:26.9]} 30... a4 {[%clk 0:00:38.2]} 31. a3 {[%clk 0:00:13.7]} 31...
axb3 {[%clk 0:00:32.3]} 32. Rxb3 {[%clk 0:00:13.7]} 32... Qf2 {[%clk 0:00:30.2]}
33. Bxc6 {[%clk 0:00:10.5]} 33... Qd4+ {[%clk 0:00:26.9]} 34. Rc3 {[%clk
0:00:09.5]} 34... Rb8+ {[%clk 0:00:18.6]} 35. Bb5+ {[%clk 0:00:07.5]} 35...
Qxc3+ {[%clk 0:00:18.9]} 36. Kxc3 {[%clk 0:00:07.2]} 36... Rxb5 {[%clk
0:00:19.7]} 37. Qh8 {[%clk 0:00:05.7]} 37... Rc5+ {[%clk 0:00:18.1]} 38. Kd2
{[%clk 0:00:06.2]} 38... Rd5+ {[%clk 0:00:18.3]} 39. Kc1 {[%clk 0:00:07.1]}
39... Ra5 {[%clk 0:00:17.4]} 40. Kb2 {[%clk 0:00:08]} 40... Rb5+ {[%clk
0:00:17.3]} 41. Kc1 {[%clk 0:00:07.7]} 41... Ra5 {[%clk 0:00:17.4]} 42. Kb2
{[%clk 0:00:06.3]} 42... Rb5+ {[%clk 0:00:17.7]} 43. Kc1 {[%clk 0:00:07.1]}
43... Ra5 {[%clk 0:00:17.9]} 1/2-1/2

[Event "*** SCC Grand Prix: Titled Tuesday Blitz"]
[Site "Chess.com"]
[Date "2020.10.06"]
[Round "10"]
[White "Zhigalko_Sergei"]
[Black "Harsha_Bharathakoti"]
[Result "1-0"]
[WhiteElo "2924"]
[BlackElo "2751"]
[TimeControl "180+1"]
[EndTime "11:58:07 PDT"]
[Termination "Zhigalko_Sergei won on time"]

1. e4 {[%clk 0:03:00.9]} 1... c6 {[%clk 0:03:00.5]} 2. d4 {[%clk 0:02:59.9]}
2... d5 {[%clk 0:03:00.9]} 3. e5 {[%clk 0:03:00.6]} 3... Bf5 {[%clk 0:02:59.2]}
4. Nf3 {[%clk 0:03:01.1]} 4... e6 {[%clk 0:02:57.4]} 5. Be2 {[%clk 0:03:01.4]}
5... c5 {[%clk 0:02:57.7]} 6. Be3 {[%clk 0:03:01.4]} 6... Qb6 {[%clk 0:02:55.7]}
7. Nc3 {[%clk 0:03:01.1]} 7... Nc6 {[%clk 0:02:45.4]} 8. dxc5 {[%clk 0:03:00.4]}
8... Bxc5 {[%clk 0:02:38.4]} 9. Bxc5 {[%clk 0:03:01.3]} 9... Qxc5 {[%clk
0:02:38.7]} 10. Nb5 {[%clk 0:03:02]} 10... Kf8 {[%clk 0:02:23.2]} 11. Nbd4
{[%clk 0:02:57.8]} 11... Nge7 {[%clk 0:02:20.7]} 12. O-O {[%clk 0:02:56.4]}
12... Rd8 {[%clk 0:02:13.8]} 13. Re1 {[%clk 0:02:52.9]} 13... h6 {[%clk
0:02:13.8]} 14. c3 {[%clk 0:02:52.4]} 14... Kg8 {[%clk 0:02:01]} 15. Nxf5 {[%clk
0:02:46.4]} 15... Nxf5 {[%clk 0:02:00.9]} 16. Bd3 {[%clk 0:02:47.3]} 16... Nfe7
{[%clk 0:01:54.2]} 17. Qd2 {[%clk 0:02:44.8]} 17... h5 {[%clk 0:01:43.9]} 18.
Qf4 {[%clk 0:02:40.5]} 18... Rh6 {[%clk 0:01:40.3]} 19. Rad1 {[%clk 0:02:35.3]}
19... Ng6 {[%clk 0:01:37.5]} 20. Qd2 {[%clk 0:02:17.3]} 20... Qe7 {[%clk
0:01:22.9]} 21. g3 {[%clk 0:02:10.3]} 21... h4 {[%clk 0:01:20.6]} 22. Kg2 {[%clk
0:02:05.9]} 22... hxg3 {[%clk 0:01:20.6]} 23. hxg3 {[%clk 0:02:05]} 23... f6
{[%clk 0:01:00.6]} 24. Bxg6 {[%clk 0:01:50.6]} 24... Rxg6 {[%clk 0:00:59]} 25.
Qe3 {[%clk 0:01:38.4]} 25... Rf8 {[%clk 0:00:52.4]} 26. Rd2 {[%clk 0:01:27.4]}
26... Qf7 {[%clk 0:00:48.1]} 27. exf6 {[%clk 0:01:22.8]} 27... Rxf6 {[%clk
0:00:48.3]} 28. Ng5 {[%clk 0:01:21.7]} 28... Qg6 {[%clk 0:00:40.7]} 29. Ree2
{[%clk 0:00:46.7]} 29... Ne7 {[%clk 0:00:22.2]} 30. f4 {[%clk 0:00:21.7]} 30...
Nf5 {[%clk 0:00:16.9]} 31. Qe5 {[%clk 0:00:20.1]} 31... Nh6 {[%clk 0:00:10.3]}
32. Qd6 {[%clk 0:00:11.4]} 32... Ng4 {[%clk 0:00:06]} 33. Rxe6 {[%clk
0:00:10.7]} 33... Qh5 {[%clk 0:00:02.7]} 34. Qxd5 {[%clk 0:00:05.2]} 34... Qh2+
{[%clk 0:00:02.1]} 35. Kf1 {[%clk 0:00:05.5]} 1-0

[Event "*** SCC Grand Prix: Titled Tuesday Blitz"]
[Site "Chess.com"]
[Date "2020.10.06"]
[Round "10"]
[White "ChessicallyInclined"]
[Black "Tenamu"]
[Result "1-0"]
[WhiteElo "2514"]
[BlackElo "2368"]
[TimeControl "180+1"]
[EndTime "11:58:09 PDT"]
[Termination "ChessicallyInclined won by resignation"]

1. d4 {[%clk 0:03:00.9]} 1... e6 {[%clk 0:02:59.9]} 2. c4 {[%clk 0:03:00.4]}
2... Nf6 {[%clk 0:03:00.5]} 3. Nc3 {[%clk 0:03:00.5]} 3... c5 {[%clk 0:02:59.6]}
4. d5 {[%clk 0:03:00.4]} 4... exd5 {[%clk 0:02:59.6]} 5. cxd5 {[%clk 0:03:01.3]}
5... d6 {[%clk 0:03:00]} 6. e4 {[%clk 0:03:01.9]} 6... g6 {[%clk 0:02:59.4]} 7.
Nge2 {[%clk 0:03:01.9]} 7... Bg7 {[%clk 0:02:59.2]} 8. Ng3 {[%clk 0:03:02.1]}
8... O-O {[%clk 0:02:58.7]} 9. Be2 {[%clk 0:03:00.2]} 9... h5 {[%clk 0:02:57.9]}
10. Bg5 {[%clk 0:02:59.2]} 10... Qa5 {[%clk 0:02:51.2]} 11. Qd2 {[%clk
0:02:58.2]} 11... Nh7 {[%clk 0:02:49.4]} 12. Bh4 {[%clk 0:02:56.9]} 12... b5
{[%clk 0:02:44.1]} 13. O-O {[%clk 0:02:51.9]} 13... Bd7 {[%clk 0:02:36.3]} 14.
Rfc1 {[%clk 0:02:41.2]} 14... Na6 {[%clk 0:02:33.7]} 15. a3 {[%clk 0:02:38.7]}
15... Rac8 {[%clk 0:02:27.4]} 16. Be7 {[%clk 0:02:26.7]} 16... Rfe8 {[%clk
0:02:26.8]} 17. Bxd6 {[%clk 0:02:23.3]} 17... Qb6 {[%clk 0:02:21.3]} 18. Bf4
{[%clk 0:02:22.1]} 18... c4 {[%clk 0:02:20.7]} 19. Be3 {[%clk 0:02:21.3]} 19...
Qb7 {[%clk 0:02:17.9]} 20. f3 {[%clk 0:02:16.6]} 20... Nc5 {[%clk 0:02:13.4]}
21. Bd1 {[%clk 0:02:05.4]} 21... Nd3 {[%clk 0:02:08.3]} 22. Rcb1 {[%clk
0:02:04.9]} 22... a5 {[%clk 0:02:05.5]} 23. Be2 {[%clk 0:02:01]} 23... b4 {[%clk
0:02:03.8]} 24. axb4 {[%clk 0:02:00.4]} 24... axb4 {[%clk 0:02:04.7]} 25. Nd1
{[%clk 0:01:59.9]} 25... Nxb2 {[%clk 0:01:49.3]} 26. Nxb2 {[%clk 0:01:56.6]}
26... c3 {[%clk 0:01:48.9]} 27. Qe1 {[%clk 0:01:40.7]} 27... cxb2 {[%clk
0:01:47.7]} 28. Ra7 {[%clk 0:01:40]} 28... Qb8 {[%clk 0:01:42.5]} 29. Rxd7
{[%clk 0:01:39.7]} 29... Rc2 {[%clk 0:01:38.6]} 30. Bf1 {[%clk 0:01:31]} 30...
Rec8 {[%clk 0:01:33.2]} 31. Ne2 {[%clk 0:01:29.9]} 31... Qb5 {[%clk 0:01:27.5]}
32. Ra7 {[%clk 0:01:20.8]} 32... Qb8 {[%clk 0:01:10.8]} 33. Ra4 {[%clk
0:01:17.2]} 33... b3 {[%clk 0:01:05.3]} 34. Rb4 {[%clk 0:01:15.9]} 34... Qa8
{[%clk 0:00:49.5]} 35. Rxb3 {[%clk 0:01:14.4]} 35... Qa2 {[%clk 0:00:48.9]} 36.
Rb7 {[%clk 0:01:02.6]} 36... h4 {[%clk 0:00:21.2]} 37. d6 {[%clk 0:00:54.2]}
37... h3 {[%clk 0:00:17.8]} 38. d7 {[%clk 0:00:53.8]} 38... Rd8 {[%clk
0:00:17.4]} 39. Bb6 {[%clk 0:00:50.2]} 39... hxg2 {[%clk 0:00:15.4]} 40. Kxg2
{[%clk 0:00:51.1]} 40... Rxd7 {[%clk 0:00:14.9]} 41. Rxd7 {[%clk 0:00:50.1]}
41... Ng5 {[%clk 0:00:15]} 42. Rd8+ {[%clk 0:00:49.7]} 42... Kh7 {[%clk
0:00:14.7]} 43. Qh4+ {[%clk 0:00:50]} 43... Bh6 {[%clk 0:00:15.2]} 44. Rh8+
{[%clk 0:00:50.2]} 44... Kxh8 {[%clk 0:00:15.4]} 45. Qxh6+ {[%clk 0:00:49.9]}
45... Kg8 {[%clk 0:00:15.6]} 46. Bd4 {[%clk 0:00:47.8]} 46... f6 {[%clk
0:00:10.3]} 47. Qxg6+ {[%clk 0:00:47.3]} 47... Kf8 {[%clk 0:00:10.2]} 48. Qxf6+
{[%clk 0:00:47.3]} 48... Nf7 {[%clk 0:00:09]} 49. Rxb2 {[%clk 0:00:46.3]} 49...
Rxb2 {[%clk 0:00:08.4]} 50. Bxb2 {[%clk 0:00:47.2]} 50... Qc4 {[%clk 0:00:08.1]}
51. Ng3 {[%clk 0:00:45.3]} 51... Qc2+ {[%clk 0:00:07.5]} 52. Be2 {[%clk
0:00:45.5]} 52... Qc6 {[%clk 0:00:07.7]} 53. Ba3+ {[%clk 0:00:43.6]} 53... Kg8
{[%clk 0:00:06.5]} 54. Qxc6 {[%clk 0:00:43.5]} 1-0

[Event "*** SCC Grand Prix: Titled Tuesday Blitz"]
[Site "Chess.com"]
[Date "2020.10.06"]
[Round "10"]
[White "GelmanAlexander"]
[Black "yourstrulyme"]
[Result "1-0"]
[WhiteElo "2579"]
[BlackElo "2438"]
[TimeControl "180+1"]
[EndTime "11:58:10 PDT"]
[Termination "GelmanAlexander won by resignation"]

1. d4 {[%clk 0:03:00.9]} 1... Nf6 {[%clk 0:03:00.2]} 2. Nc3 {[%clk 0:03:01.1]}
2... g6 {[%clk 0:03:00.8]} 3. e4 {[%clk 0:03:01.2]} 3... d5 {[%clk 0:03:00.4]}
4. e5 {[%clk 0:03:01.2]} 4... Ne4 {[%clk 0:03:00.7]} 5. Nce2 {[%clk 0:03:01.3]}
5... c5 {[%clk 0:02:55.4]} 6. f3 {[%clk 0:03:00.8]} 6... cxd4 {[%clk 0:02:53.1]}
7. fxe4 {[%clk 0:03:00.8]} 7... dxe4 {[%clk 0:02:48.6]} 8. Qxd4 {[%clk
0:02:59.4]} 8... Qc7 {[%clk 0:02:43.2]} 9. Nc3 {[%clk 0:02:45]} 9... Bg7 {[%clk
0:02:41.1]} 10. Bf4 {[%clk 0:02:34.9]} 10... Nc6 {[%clk 0:02:40.8]} 11. Qxe4
{[%clk 0:02:30.3]} 11... Bf5 {[%clk 0:02:40.8]} 12. Qe3 {[%clk 0:02:19.1]} 12...
Nb4 {[%clk 0:02:40]} 13. Bb5+ {[%clk 0:02:15.8]} 13... Kf8 {[%clk 0:02:33.7]}
14. O-O-O {[%clk 0:02:11.5]} 14... Nxc2 {[%clk 0:02:29.8]} 15. Qe2 {[%clk
0:01:42.5]} 15... Nb4 {[%clk 0:02:27.8]} 16. Qc4 {[%clk 0:01:42.2]} 16... Qxc4
{[%clk 0:02:03.1]} 17. Bxc4 {[%clk 0:01:42.1]} 17... Rc8 {[%clk 0:02:03.7]} 18.
Nf3 {[%clk 0:01:35.4]} 18... e6 {[%clk 0:01:53]} 19. Bb3 {[%clk 0:01:33]} 19...
Nd3+ {[%clk 0:01:50]} 20. Rxd3 {[%clk 0:01:33.1]} 20... Bxd3 {[%clk 0:01:50.9]}
21. Rd1 {[%clk 0:01:32.4]} 21... Be4 {[%clk 0:01:44.3]} 22. Ng5 {[%clk 0:00:54]}
22... Bc6 {[%clk 0:01:30.6]} 23. Kb1 {[%clk 0:00:47.6]} 23... h6 {[%clk
0:01:28.1]} 24. Nge4 {[%clk 0:00:47]} 24... g5 {[%clk 0:01:28]} 25. Bg3 {[%clk
0:00:46.8]} 25... Ke7 {[%clk 0:01:22.5]} 26. h4 {[%clk 0:00:40.3]} 26... Rhg8
{[%clk 0:00:59.6]} 27. hxg5 {[%clk 0:00:39.3]} 27... hxg5 {[%clk 0:00:59.3]} 28.
Rf1 {[%clk 0:00:34.4]} 28... Be8 {[%clk 0:00:19.2]} 29. Nxg5 {[%clk 0:00:29.6]}
29... Bxe5 {[%clk 0:00:15]} 30. Bxe5 {[%clk 0:00:29]} 30... Rxg5 {[%clk
0:00:15.6]} 31. Bf6+ {[%clk 0:00:29.3]} 31... Kf8 {[%clk 0:00:15.6]} 32. Bxg5
{[%clk 0:00:30.2]} 32... Bc6 {[%clk 0:00:13.6]} 33. Bxe6 {[%clk 0:00:29.1]}
33... Rc7 {[%clk 0:00:13.6]} 34. Rxf7+ {[%clk 0:00:26.7]} 34... Rxf7 {[%clk
0:00:13.3]} 35. Bxf7 {[%clk 0:00:27.6]} 35... Kxf7 {[%clk 0:00:13.6]} 36. g3
{[%clk 0:00:28.2]} 36... Kg6 {[%clk 0:00:13.2]} 37. Bf4 {[%clk 0:00:28.4]} 37...
Kf5 {[%clk 0:00:13.3]} 38. Kc2 {[%clk 0:00:29]} 38... Kg4 {[%clk 0:00:13]} 39.
Kd3 {[%clk 0:00:29.2]} 39... Bf3 {[%clk 0:00:12.4]} 40. b4 {[%clk 0:00:29.5]}
40... a6 {[%clk 0:00:12.1]} 41. Kd4 {[%clk 0:00:29.7]} 41... Bc6 {[%clk
0:00:11.7]} 42. Kc5 {[%clk 0:00:30]} 42... Kf5 {[%clk 0:00:11.5]} 43. a4 {[%clk
0:00:30.2]} 43... Be8 {[%clk 0:00:09.6]} 44. Kb6 {[%clk 0:00:29.3]} 44... Bc6
{[%clk 0:00:09.4]} 45. a5 {[%clk 0:00:29.2]} 45... Bf3 {[%clk 0:00:08.4]} 46.
Na4 {[%clk 0:00:28.7]} 1-0

[Event "*** SCC Grand Prix: Titled Tuesday Blitz"]
[Site "Chess.com"]
[Date "2020.10.06"]
[Round "10"]
[White "chessmadara"]
[Black "Playgood28"]
[Result "0-1"]
[WhiteElo "2128"]
[BlackElo "2302"]
[TimeControl "180+1"]
[EndTime "11:58:10 PDT"]
[Termination "Playgood28 won by resignation"]

1. c4 {[%clk 0:03:00.9]} 1... f5 {[%clk 0:02:59.1]} 2. g3 {[%clk 0:02:58.8]}
2... Nf6 {[%clk 0:02:58.7]} 3. Bg2 {[%clk 0:02:58.8]} 3... g6 {[%clk 0:02:58.6]}
4. Nf3 {[%clk 0:02:53.1]} 4... Bg7 {[%clk 0:02:58.1]} 5. O-O {[%clk 0:02:53.2]}
5... d6 {[%clk 0:02:58]} 6. d4 {[%clk 0:02:51.6]} 6... O-O {[%clk 0:02:57.1]} 7.
Nc3 {[%clk 0:02:50.7]} 7... c6 {[%clk 0:02:57]} 8. e4 {[%clk 0:02:48]} 8... Nxe4
{[%clk 0:02:47.1]} 9. Nxe4 {[%clk 0:02:46.2]} 9... fxe4 {[%clk 0:02:47]} 10. Ng5
{[%clk 0:02:44.5]} 10... d5 {[%clk 0:02:41.8]} 11. cxd5 {[%clk 0:02:44.2]} 11...
cxd5 {[%clk 0:02:41]} 12. Qb3 {[%clk 0:02:44.1]} 12... Kh8 {[%clk 0:02:29.9]}
13. Be3 {[%clk 0:02:42.7]} 13... Nc6 {[%clk 0:02:29]} 14. Rfd1 {[%clk
0:02:36.5]} 14... h6 {[%clk 0:02:26.2]} 15. Nh3 {[%clk 0:02:35.3]} 15... g5
{[%clk 0:02:26.2]} 16. Rac1 {[%clk 0:02:31.2]} 16... e6 {[%clk 0:02:11.9]} 17.
Qc2 {[%clk 0:02:09.1]} 17... Bd7 {[%clk 0:02:06.3]} 18. Kh1 {[%clk 0:02:07]}
18... Rc8 {[%clk 0:02:03.4]} 19. Ng1 {[%clk 0:02:06.8]} 19... Nxd4 {[%clk
0:01:59.3]} 20. Qb1 {[%clk 0:02:06.6]} 20... Nf5 {[%clk 0:01:54.8]} 21. Bxa7
{[%clk 0:02:04.3]} 21... Qa5 {[%clk 0:01:42.7]} 22. Be3 {[%clk 0:01:53.8]} 22...
Nxe3 {[%clk 0:01:37.8]} 23. fxe3 {[%clk 0:01:54.7]} 23... Bc6 {[%clk 0:01:24.1]}
24. Ne2 {[%clk 0:01:53]} 24... Rf2 {[%clk 0:01:18.1]} 25. Nd4 {[%clk 0:01:52.8]}
25... Bxd4 {[%clk 0:01:09.9]} 26. Rxd4 {[%clk 0:01:53.7]} 26... Rcf8 {[%clk
0:01:04.9]} 27. a4 {[%clk 0:01:32.4]} 27... Qb6 {[%clk 0:00:56.4]} 28. b4 {[%clk
0:01:30.5]} 28... Bxa4 {[%clk 0:00:55.8]} 29. Qa1 {[%clk 0:01:29.6]} 29... Bc6
{[%clk 0:00:41.5]} 30. Rxd5+ {[%clk 0:01:26.4]} 30... Kg8 {[%clk 0:00:41]} 31.
Rd4 {[%clk 0:00:59.4]} 31... Re2 {[%clk 0:00:40]} 32. Qb1 {[%clk 0:00:49.7]}
32... Rff2 {[%clk 0:00:37]} 33. Bxe4 {[%clk 0:00:33.1]} 33... Rxh2+ {[%clk
0:00:25.4]} 34. Kg1 {[%clk 0:00:32.5]} 34... Rxe3 {[%clk 0:00:24.8]} 35. Bxc6
{[%clk 0:00:29.6]} 35... Qxd4 {[%clk 0:00:22]} 36. Qg6+ {[%clk 0:00:29]} 36...
Kf8 {[%clk 0:00:19.5]} 37. Rf1+ {[%clk 0:00:27.7]} 37... Rf3+ {[%clk 0:00:19.1]}
38. Kxh2 {[%clk 0:00:26.4]} 38... Rxf1 {[%clk 0:00:18.6]} 39. Qxh6+ {[%clk
0:00:20.6]} 39... Qg7 {[%clk 0:00:17.6]} 40. Qxe6 {[%clk 0:00:16]} 40... bxc6
{[%clk 0:00:17]} 41. Qd6+ {[%clk 0:00:15]} 41... Kg8 {[%clk 0:00:15.9]} 42. Qd8+
{[%clk 0:00:13.6]} 42... Rf8 {[%clk 0:00:13.8]} 43. Qd3 {[%clk 0:00:12.2]} 43...
Qh7+ {[%clk 0:00:12.5]} 0-1